[Event "Titled Tuesday Blitz March 14 Early 2023"]
[White "Jaskolka, Tomasz"]
[Black "Rakhmatullaev, Almas"]
[WhiteFideId "1170791"]
[BlackFideId "14205793"]
[WhiteElo "2155"]
[BlackElo "2221"]
[Result "1-0"]
[Round "03"]
[TimeControl "180+2"]
[Date "2023.03.14"]
[WhiteClock "0:00:21"]
[BlackClock "0:00:15"]

1. d4 {[%clk 0:03:00]}  Nf6 {[%clk 0:02:57]} 2. Bf4 {[%clk 0:03:00]}  d5 {[%clk 0:02:55]} 3. e3 {[%clk 0:03:01]}  a6 {[%clk 0:02:55]} 4. c3 {[%clk 0:03:01]}  e6 {[%clk 0:02:55]} 5. Nd2 {[%clk 0:03:01]}  Bd6 {[%clk 0:02:52]} 6. Bg3 {[%clk 0:03:01]}  O-O {[%clk 0:02:51]} 7. Ngf3 {[%clk 0:03:01]}  c5 {[%clk 0:02:51]} 8. Bd3 {[%clk 0:03:00]}  Nc6 {[%clk 0:02:49]} 9. Qe2 {[%clk 0:02:56]}  Re8 {[%clk 0:02:49]} 10. Ne5 {[%clk 0:02:56]}  Qc7 {[%clk 0:02:43]} 11. f4 {[%clk 0:02:52]}  b5 {[%clk 0:02:37]} 12. Bh4 {[%clk 0:02:48]}  Bxe5 {[%clk 0:02:18]} 13. fxe5 {[%clk 0:02:46]}  Nd7 {[%clk 0:02:18]} 14. O-O {[%clk 0:02:41]}  Nf8 {[%clk 0:02:15]} 15. Qg4 {[%clk 0:02:17]}  Ng6 {[%clk 0:02:12]} 16. Bg3 {[%clk 0:02:02]}  Nce7 {[%clk 0:02:02]} 17. h4 {[%clk 0:01:24]}  Nf5 {[%clk 0:02:02]} 18. h5 {[%clk 0:01:25]}  Nxe3 {[%clk 0:01:40]} 19. Qg5 {[%clk 0:01:25]}  Nxf1 {[%clk 0:01:38]} 20. Rxf1 {[%clk 0:01:24]}  h6 {[%clk 0:01:25]} 21. Qg4 {[%clk 0:01:07]}  Ne7 {[%clk 0:00:46]} 22. Bh7+ {[%clk 0:00:40]}  Kxh7 {[%clk 0:00:29]} 23. Rxf7 {[%clk 0:00:39]}  Rg8 {[%clk 0:00:29]} 24. Bh4 {[%clk 0:00:26]}  Qd8 {[%clk 0:00:28]} 25. Bxe7 {[%clk 0:00:20]}  Qe8 {[%clk 0:00:28]} 26. Qg6+ {[%clk 0:00:21]}  Kh8 {[%clk 0:00:29]} 27. Bf6 {[%clk 0:00:20]}  Qxf7 {[%clk 0:00:15]} 28. Qxh6# {[%clk 0:00:21]} 1-0


[Site "https://www.chess.com"]

[Event "Titled Tuesday Blitz March 14 Early 2023"]
[White "Bortnyk, Olexandr"]
[Black "Fiorito, Joaquin"]
[WhiteFideId "14120828"]
[BlackFideId "180173"]
[WhiteElo "2734"]
[BlackElo "2157"]
[Result "1/2-1/2"]
[Round "03"]
[TimeControl "180+2"]
[Date "2023.03.14"]
[WhiteClock "0:00:25"]
[BlackClock "0:00:26"]

1. d4 {[%clk 0:02:56]}  Nf6 {[%clk 0:02:59]} 2. Nc3 {[%clk 0:02:56]}  d5 {[%clk 0:02:59]} 3. Bf4 {[%clk 0:02:55]}  a6 {[%clk 0:02:59]} 4. e3 {[%clk 0:02:56]}  b5 {[%clk 0:02:58]} 5. a3 {[%clk 0:02:55]}  Bb7 {[%clk 0:02:57]} 6. Nf3 {[%clk 0:02:55]}  e6 {[%clk 0:02:58]} 7. b4 {[%clk 0:02:55]}  Nbd7 {[%clk 0:02:53]} 8. Bd3 {[%clk 0:02:52]}  Bd6 {[%clk 0:02:49]} 9. Ne5 {[%clk 0:02:53]}  O-O {[%clk 0:02:35]} 10. Qf3 {[%clk 0:02:51]}  Qe7 {[%clk 0:02:23]} 11. Qg3 {[%clk 0:02:08]}  Rfe8 {[%clk 0:02:13]} 12. Bg5 {[%clk 0:02:00]}  h6 {[%clk 0:01:37]} 13. Bxh6 {[%clk 0:01:45]}  Nh5 {[%clk 0:01:34]} 14. Qh3 {[%clk 0:00:48]}  Nxe5 {[%clk 0:01:32]} 15. Bh7+ {[%clk 0:00:48]}  Kxh7 {[%clk 0:01:31]} 16. Qxh5 {[%clk 0:00:49]}  g6 {[%clk 0:01:02]} 17. Qh3 {[%clk 0:00:48]}  Kg8 {[%clk 0:01:00]} 18. dxe5 {[%clk 0:00:23]}  Bxe5 {[%clk 0:01:01]} 19. e4 {[%clk 0:00:24]}  Qf6 {[%clk 0:00:58]} 20. Bd2 {[%clk 0:00:24]}  d4 {[%clk 0:00:55]} 21. Nd1 {[%clk 0:00:21]}  d3 {[%clk 0:00:53]} 22. c3 {[%clk 0:00:20]}  Bxe4 {[%clk 0:00:52]} 23. O-O {[%clk 0:00:20]}  Rad8 {[%clk 0:00:49]} 24. f4 {[%clk 0:00:19]}  Bd6 {[%clk 0:00:48]} 25. Nf2 {[%clk 0:00:19]}  Bb7 {[%clk 0:00:45]} 26. Ng4 {[%clk 0:00:20]}  Qg7 {[%clk 0:00:43]} 27. f5 {[%clk 0:00:08]}  exf5 {[%clk 0:00:40]} 28. Nh6+ {[%clk 0:00:09]}  Kf8 {[%clk 0:00:37]} 29. Nxf5 {[%clk 0:00:10]}  Qe5 {[%clk 0:00:23]} 30. Bh6+ {[%clk 0:00:04]}  Kg8 {[%clk 0:00:22]} 31. Bg7 {[%clk 0:00:05]}  Qxh2+ {[%clk 0:00:20]} 32. Qxh2 {[%clk 0:00:05]}  Bxh2+ {[%clk 0:00:21]} 33. Kxh2 {[%clk 0:00:05]}  gxf5 {[%clk 0:00:22]} 34. Bf6 {[%clk 0:00:04]}  Rd5 {[%clk 0:00:22]} 35. Rf3 {[%clk 0:00:02]}  Re6 {[%clk 0:00:21]} 36. Rg3+ {[%clk 0:00:02]}  Kf8 {[%clk 0:00:22]} 37. Bd4 {[%clk 0:00:03]}  Rg6 {[%clk 0:00:22]} 38. Rxd3 {[%clk 0:00:02]}  Ke8 {[%clk 0:00:17]} 39. Re1+ {[%clk 0:00:02]}  Kd7 {[%clk 0:00:18]} 40. Rg3 {[%clk 0:00:01]}  f4 {[%clk 0:00:16]} 41. Rxg6 {[%clk 0:00:01]}  fxg6 {[%clk 0:00:17]} 42. Kh3 {[%clk 0:00:01]}  Rg5 {[%clk 0:00:16]} 43. Re2 {[%clk 0:00:02]}  Rg3+ {[%clk 0:00:15]} 44. Kh4 {[%clk 0:00:02]}  Rxg2 {[%clk 0:00:15]} 45. Re1 {[%clk 0:00:01]}  g5+ {[%clk 0:00:15]} 46. Kh5 {[%clk 0:00:01]}  Bf3+ {[%clk 0:00:14]} 47. Kg6 {[%clk 0:00:01]}  g4 {[%clk 0:00:14]} 48. Kf5 {[%clk 0:00:01]}  Bc6 {[%clk 0:00:10]} 49. Kxf4 {[%clk 0:00:02]}  Bf3 {[%clk 0:00:09]} 50. Re5 {[%clk 0:00:01]}  Ra2 {[%clk 0:00:08]} 51. Rg5 {[%clk 0:00:02]}  Rxa3 {[%clk 0:00:08]} 52. Rg7+ {[%clk 0:00:03]}  Kc6 {[%clk 0:00:08]} 53. Be5 {[%clk 0:00:04]}  Ra2 {[%clk 0:00:08]} 54. Rxc7+ {[%clk 0:00:04]}  Kd5 {[%clk 0:00:09]} 55. Rc5+ {[%clk 0:00:03]}  Ke6 {[%clk 0:00:09]} 56. Bd4 {[%clk 0:00:03]}  Rg2 {[%clk 0:00:09]} 57. Re5+ {[%clk 0:00:03]}  Kd6 {[%clk 0:00:09]} 58. Rg5 {[%clk 0:00:04]}  Re2 {[%clk 0:00:08]} 59. Be5+ {[%clk 0:00:02]}  Kd5 {[%clk 0:00:07]} 60. Bd4+ {[%clk 0:00:02]}  Kc4 {[%clk 0:00:08]} 61. Rg6 {[%clk 0:00:03]}  Re4+ {[%clk 0:00:07]} 62. Kg3 {[%clk 0:00:04]}  Re2 {[%clk 0:00:06]} 63. Rxa6 {[%clk 0:00:03]}  Rg2+ {[%clk 0:00:06]} 64. Kf4 {[%clk 0:00:04]}  Be2 {[%clk 0:00:06]} 65. Rc6+ {[%clk 0:00:04]}  Kb3 {[%clk 0:00:07]} 66. Re6 {[%clk 0:00:03]}  Bc4 {[%clk 0:00:07]} 67. Re3 {[%clk 0:00:03]}  Re2 {[%clk 0:00:06]} 68. Rg3 {[%clk 0:00:03]}  Bd5 {[%clk 0:00:03]} 69. Kxg4 {[%clk 0:00:02]}  Rg2 {[%clk 0:00:03]} 70. Rxg2 {[%clk 0:00:02]}  Bxg2 {[%clk 0:00:04]} 71. Kg3 {[%clk 0:00:03]}  Bd5 {[%clk 0:00:04]} 72. Kf4 {[%clk 0:00:04]}  Bc4 {[%clk 0:00:05]} 73. Ke5 {[%clk 0:00:05]}  Ka4 {[%clk 0:00:06]} 74. Kd6 {[%clk 0:00:05]}  Kb3 {[%clk 0:00:07]} 75. Kc5 {[%clk 0:00:06]}  Ka4 {[%clk 0:00:08]} 76. Be5 {[%clk 0:00:07]}  Kb3 {[%clk 0:00:08]} 77. Kd4 {[%clk 0:00:08]}  Ka4 {[%clk 0:00:09]} 78. Ke3 {[%clk 0:00:09]}  Kb3 {[%clk 0:00:10]} 79. Kd2 {[%clk 0:00:10]}  Ka4 {[%clk 0:00:11]} 80. Kc2 {[%clk 0:00:11]}  Ka3 {[%clk 0:00:12]} 81. Bd4 {[%clk 0:00:11]}  Ka4 {[%clk 0:00:12]} 82. Kb2 {[%clk 0:00:12]}  Bb3 {[%clk 0:00:13]} 83. Be3 {[%clk 0:00:13]}  Bc4 {[%clk 0:00:13]} 84. Bd2 {[%clk 0:00:14]}  Bb3 {[%clk 0:00:14]} 85. Bc1 {[%clk 0:00:14]}  Bc4 {[%clk 0:00:15]} 86. Kc2 {[%clk 0:00:15]}  Bb3+ {[%clk 0:00:16]} 87. Kd3 {[%clk 0:00:16]}  Bc4+ {[%clk 0:00:17]} 88. Kd4 {[%clk 0:00:16]}  Bb3 {[%clk 0:00:17]} 89. Bf4 {[%clk 0:00:17]}  Bc4 {[%clk 0:00:18]} 90. Bd6 {[%clk 0:00:18]}  Bb3 {[%clk 0:00:19]} 91. Bc5 {[%clk 0:00:19]}  Bc4 {[%clk 0:00:20]} 92. Be7 {[%clk 0:00:20]}  Bb3 {[%clk 0:00:21]} 93. Bf8 {[%clk 0:00:21]}  Bc4 {[%clk 0:00:21]} 94. Bg7 {[%clk 0:00:21]}  Bb3 {[%clk 0:00:22]} 95. Kc5 {[%clk 0:00:22]}  Bc4 {[%clk 0:00:23]} 96. Bd4 {[%clk 0:00:23]}  Bb3 {[%clk 0:00:24]} 97. Kc6 {[%clk 0:00:21]}  Bc4 {[%clk 0:00:24]} 98. Kb6 {[%clk 0:00:22]}  Bb3 {[%clk 0:00:23]} 99. Kc5 {[%clk 0:00:23]}  Bc4 {[%clk 0:00:24]} 100. Kb6 {[%clk 0:00:24]}  Bb3 {[%clk 0:00:25]} 101. Kc5 {[%clk 0:00:25]}  Bc4 {[%clk 0:00:26]} 1/2-1/2


[Site "https://www.chess.com"]

[Event "Titled Tuesday Blitz March 14 Early 2023"]
[White "Daneshvar, Bardiya"]
[Black "Melikyan, Gnel"]
[WhiteFideId "12576468"]
[BlackFideId "54109990"]
[WhiteElo "2468"]
[BlackElo "2138"]
[Result "0-1"]
[Round "03"]
[TimeControl "180+2"]
[Date "2023.03.14"]
[WhiteClock "0:00:01"]
[BlackClock "0:00:03"]

1. b3 {[%clk 0:02:58]}  Nf6 {[%clk 0:02:58]} 2. Bb2 {[%clk 0:02:58]}  g6 {[%clk 0:02:59]} 3. Nf3 {[%clk 0:02:59]}  Bg7 {[%clk 0:03:00]} 4. e3 {[%clk 0:02:59]}  O-O {[%clk 0:03:00]} 5. Be2 {[%clk 0:03:00]}  c5 {[%clk 0:02:59]} 6. c4 {[%clk 0:02:59]}  b6 {[%clk 0:02:59]} 7. O-O {[%clk 0:02:58]}  Bb7 {[%clk 0:03:00]} 8. d4 {[%clk 0:02:58]}  cxd4 {[%clk 0:02:59]} 9. Nxd4 {[%clk 0:02:59]}  d5 {[%clk 0:02:58]} 10. Nd2 {[%clk 0:02:59]}  Nc6 {[%clk 0:02:58]} 11. Rc1 {[%clk 0:02:53]}  Rc8 {[%clk 0:02:56]} 12. Nxc6 {[%clk 0:02:50]}  Bxc6 {[%clk 0:02:55]} 13. Nf3 {[%clk 0:02:48]}  dxc4 {[%clk 0:02:51]} 14. Bxc4 {[%clk 0:02:48]}  Qxd1 {[%clk 0:02:50]} 15. Rfxd1 {[%clk 0:02:49]}  Rfd8 {[%clk 0:02:35]} 16. Rxd8+ {[%clk 0:02:39]}  Rxd8 {[%clk 0:02:36]} 17. Bxf7+ {[%clk 0:02:39]}  Kxf7 {[%clk 0:02:36]} 18. Ne5+ {[%clk 0:02:40]}  Ke8 {[%clk 0:02:32]} 19. Nxc6 {[%clk 0:02:40]}  Rd2 {[%clk 0:02:33]} 20. Bxf6 {[%clk 0:02:40]}  Bxf6 {[%clk 0:02:31]} 21. Nxa7 {[%clk 0:02:30]}  Rxa2 {[%clk 0:02:29]} 22. Nc6 {[%clk 0:02:26]}  Rb2 {[%clk 0:02:27]} 23. b4 {[%clk 0:02:26]}  Kd7 {[%clk 0:02:23]} 24. g3 {[%clk 0:02:23]}  e5 {[%clk 0:02:16]} 25. Nb8+ {[%clk 0:02:20]}  Kd8 {[%clk 0:01:53]} 26. Rc6 {[%clk 0:02:14]}  Be7 {[%clk 0:01:48]} 27. Rxb6 {[%clk 0:02:14]}  Kc7 {[%clk 0:01:37]} 28. Re6 {[%clk 0:02:06]}  Bd6 {[%clk 0:01:28]} 29. Na6+ {[%clk 0:02:00]}  Kd7 {[%clk 0:01:28]} 30. Rf6 {[%clk 0:01:55]}  Ke7 {[%clk 0:01:27]} 31. Rf3 {[%clk 0:01:55]}  e4 {[%clk 0:01:27]} 32. Rf4 {[%clk 0:01:55]}  Bxf4 {[%clk 0:01:26]} 33. gxf4 {[%clk 0:01:55]}  Ke6 {[%clk 0:01:24]} 34. Kg2 {[%clk 0:01:48]}  Kf5 {[%clk 0:01:18]} 35. Kg3 {[%clk 0:01:48]}  h6 {[%clk 0:01:14]} 36. h4 {[%clk 0:01:40]}  Rb1 {[%clk 0:00:51]} 37. Kh3 {[%clk 0:01:34]}  Rh1+ {[%clk 0:00:47]} 38. Kg3 {[%clk 0:01:31]}  Rg1+ {[%clk 0:00:46]} 39. Kh2 {[%clk 0:01:25]}  Ra1 {[%clk 0:00:43]} 40. Nc7 {[%clk 0:01:13]}  Kg4 {[%clk 0:00:32]} 41. Nd5 {[%clk 0:01:02]}  Kf3 {[%clk 0:00:28]} 42. b5 {[%clk 0:00:35]}  Rf1 {[%clk 0:00:23]} 43. b6 {[%clk 0:00:29]}  Rxf2+ {[%clk 0:00:23]} 44. Kh3 {[%clk 0:00:28]}  Rf1 {[%clk 0:00:22]} 45. Kh2 {[%clk 0:00:28]}  Rb1 {[%clk 0:00:20]} 46. h5 {[%clk 0:00:28]}  gxh5 {[%clk 0:00:18]} 47. f5 {[%clk 0:00:28]}  Rb2+ {[%clk 0:00:12]} 48. Kh3 {[%clk 0:00:28]}  Rb1 {[%clk 0:00:11]} 49. Kh2 {[%clk 0:00:28]}  Rb5 {[%clk 0:00:07]} 50. Nc7 {[%clk 0:00:04]}  Rxb6 {[%clk 0:00:07]} 51. Ne6 {[%clk 0:00:04]}  Kxe3 {[%clk 0:00:05]} 52. Kg3 {[%clk 0:00:04]}  Kd2 {[%clk 0:00:04]} 53. Nf4 {[%clk 0:00:01]}  e3 {[%clk 0:00:04]} 54. Kf3 {[%clk 0:00:01]}  Rf6 {[%clk 0:00:03]} 0-1


[Site "https://www.chess.com"]

[Event "Titled Tuesday Blitz March 14 Early 2023"]
[White "Gontcharov, Vladislav"]
[Black "Terry, Renato"]
[WhiteFideId "4123492"]
[BlackFideId "3803457"]
[WhiteElo "2470"]
[BlackElo "2579"]
[Result "0-1"]
[Round "03"]
[TimeControl "180+2"]
[Date "2023.03.14"]
[WhiteClock "0:00:05"]
[BlackClock "0:01:26"]

1. e4 {[%clk 0:03:00]}  e6 {[%clk 0:03:00]} 2. d4 {[%clk 0:03:00]}  d5 {[%clk 0:03:01]} 3. e5 {[%clk 0:03:00]}  c5 {[%clk 0:03:01]} 4. c3 {[%clk 0:03:00]}  Qb6 {[%clk 0:03:01]} 5. Nf3 {[%clk 0:02:59]}  Bd7 {[%clk 0:03:02]} 6. Be2 {[%clk 0:02:56]}  cxd4 {[%clk 0:03:01]} 7. cxd4 {[%clk 0:02:55]}  Bb5 {[%clk 0:03:02]} 8. O-O {[%clk 0:02:55]}  Bxe2 {[%clk 0:03:02]} 9. Qxe2 {[%clk 0:02:55]}  Nc6 {[%clk 0:03:02]} 10. Be3 {[%clk 0:02:55]}  Nge7 {[%clk 0:03:02]} 11. Nc3 {[%clk 0:02:56]}  Nf5 {[%clk 0:03:02]} 12. Rfd1 {[%clk 0:02:56]}  Be7 {[%clk 0:03:02]} 13. g4 {[%clk 0:02:55]}  Nxe3 {[%clk 0:02:59]} 14. fxe3 {[%clk 0:02:55]}  O-O {[%clk 0:02:59]} 15. g5 {[%clk 0:02:55]}  Rac8 {[%clk 0:02:59]} 16. Kh1 {[%clk 0:02:28]}  Bb4 {[%clk 0:02:49]} 17. e4 {[%clk 0:02:18]}  Bxc3 {[%clk 0:02:45]} 18. bxc3 {[%clk 0:02:18]}  Ne7 {[%clk 0:02:46]} 19. exd5 {[%clk 0:01:57]}  Nxd5 {[%clk 0:02:42]} 20. c4 {[%clk 0:01:57]}  Nc3 {[%clk 0:02:37]} 21. Qd3 {[%clk 0:01:58]}  Nxd1 {[%clk 0:02:36]} 22. Rxd1 {[%clk 0:01:59]}  Qc6 {[%clk 0:02:36]} 23. Rc1 {[%clk 0:01:57]}  b5 {[%clk 0:02:32]} 24. c5 {[%clk 0:01:54]}  Rfd8 {[%clk 0:02:33]} 25. Kg2 {[%clk 0:01:51]}  Qd5 {[%clk 0:02:30]} 26. Qe2 {[%clk 0:01:46]}  b4 {[%clk 0:02:29]} 27. Kg3 {[%clk 0:01:36]}  a5 {[%clk 0:02:28]} 28. h4 {[%clk 0:01:33]}  a4 {[%clk 0:02:25]} 29. h5 {[%clk 0:01:32]}  b3 {[%clk 0:02:25]} 30. axb3 {[%clk 0:01:32]}  axb3 {[%clk 0:02:26]} 31. g6 {[%clk 0:01:30]}  fxg6 {[%clk 0:02:26]} 32. hxg6 {[%clk 0:01:31]}  h6 {[%clk 0:02:26]} 33. Rb1 {[%clk 0:01:26]}  Rf8 {[%clk 0:02:25]} 34. Qe3 {[%clk 0:01:19]}  Rb8 {[%clk 0:02:24]} 35. Rb2 {[%clk 0:01:18]}  Rf5 {[%clk 0:02:20]} 36. c6 {[%clk 0:01:08]}  Qxc6 {[%clk 0:02:13]} 37. Rxb3 {[%clk 0:01:05]}  Rbf8 {[%clk 0:02:13]} 38. Qe2 {[%clk 0:00:59]}  Qd5 {[%clk 0:02:10]} 39. Re3 {[%clk 0:00:59]}  Qc6 {[%clk 0:01:54]} 40. Qd3 {[%clk 0:00:44]}  Qe8 {[%clk 0:01:51]} 41. Nh4 {[%clk 0:00:43]}  Rg5+ {[%clk 0:01:51]} 42. Kh3 {[%clk 0:00:42]}  Qa8 {[%clk 0:01:50]} 43. Qe4 {[%clk 0:00:38]}  Qa1 {[%clk 0:01:45]} 44. Rg3 {[%clk 0:00:21]}  Rxg3+ {[%clk 0:01:43]} 45. Kxg3 {[%clk 0:00:21]}  Qg1+ {[%clk 0:01:43]} 46. Ng2 {[%clk 0:00:20]}  Qf2+ {[%clk 0:01:43]} 47. Kh2 {[%clk 0:00:20]}  Qf3 {[%clk 0:01:32]} 48. Qxf3 {[%clk 0:00:16]}  Rxf3 {[%clk 0:01:33]} 49. Ne1 {[%clk 0:00:12]}  Re3 {[%clk 0:01:31]} 50. Ng2 {[%clk 0:00:12]}  Re4 {[%clk 0:01:32]} 51. Kg3 {[%clk 0:00:12]}  Rxd4 {[%clk 0:01:29]} 52. Nf4 {[%clk 0:00:13]}  Re4 {[%clk 0:01:27]} 53. Nxe6 {[%clk 0:00:13]}  Rxe5 {[%clk 0:01:28]} 54. Nf4 {[%clk 0:00:13]}  Kf8 {[%clk 0:01:28]} 55. Kg4 {[%clk 0:00:13]}  Ke7 {[%clk 0:01:27]} 56. Kf3 {[%clk 0:00:13]}  Kf6 {[%clk 0:01:27]} 57. Nd3 {[%clk 0:00:12]}  Rf5+ {[%clk 0:01:27]} 58. Kg4 {[%clk 0:00:12]}  Kxg6 {[%clk 0:01:27]} 59. Kh4 {[%clk 0:00:11]}  Kf6 {[%clk 0:01:27]} 60. Kg4 {[%clk 0:00:11]}  g6 {[%clk 0:01:26]} 61. Kh4 {[%clk 0:00:10]}  h5 {[%clk 0:01:26]} 62. Kg3 {[%clk 0:00:10]}  Kg5 {[%clk 0:01:27]} 63. Ne1 {[%clk 0:00:09]}  h4+ {[%clk 0:01:26]} 64. Kh3 {[%clk 0:00:09]}  Kh5 {[%clk 0:01:26]} 65. Ng2 {[%clk 0:00:08]}  g5 {[%clk 0:01:25]} 66. Ne1 {[%clk 0:00:06]}  g4+ {[%clk 0:01:26]} 67. Kg2 {[%clk 0:00:06]}  Ra5 {[%clk 0:01:27]} 68. Nd3 {[%clk 0:00:05]}  Ra2+ {[%clk 0:01:27]} 69. Kg1 {[%clk 0:00:05]}  h3 {[%clk 0:01:27]} 70. Kh1 {[%clk 0:00:05]}  g3 {[%clk 0:01:26]} 0-1


[Site "https://www.chess.com"]

[Event "Titled Tuesday Blitz March 14 Early 2023"]
[White "Karttunen, Mika"]
[Black "Ibarra Jerez, Jose Carlos"]
[WhiteFideId "502081"]
[BlackFideId "2226332"]
[WhiteElo "2396"]
[BlackElo "2638"]
[Result "0-1"]
[Round "03"]
[TimeControl "180+2"]
[Date "2023.03.14"]
[WhiteClock "0:00:06"]
[BlackClock "0:00:52"]

1. d4 {[%clk 0:03:00]}  Nf6 {[%clk 0:02:59]} 2. c4 {[%clk 0:03:00]}  d6 {[%clk 0:02:59]} 3. Nc3 {[%clk 0:02:44]}  e5 {[%clk 0:02:59]} 4. Nf3 {[%clk 0:02:44]}  e4 {[%clk 0:02:59]} 5. Ng5 {[%clk 0:02:45]}  Qe7 {[%clk 0:02:59]} 6. f3 {[%clk 0:02:40]}  exf3 {[%clk 0:02:58]} 7. Nxf3 {[%clk 0:02:33]}  Na6 {[%clk 0:02:55]} 8. Bg5 {[%clk 0:02:25]}  c6 {[%clk 0:02:54]} 9. e4 {[%clk 0:02:06]}  h6 {[%clk 0:02:52]} 10. Bxf6 {[%clk 0:01:58]}  Qxf6 {[%clk 0:02:53]} 11. Be2 {[%clk 0:01:58]}  Qd8 {[%clk 0:02:53]} 12. O-O {[%clk 0:01:57]}  Be7 {[%clk 0:02:54]} 13. Kh1 {[%clk 0:01:32]}  O-O {[%clk 0:02:53]} 14. a3 {[%clk 0:01:28]}  Bf6 {[%clk 0:02:45]} 15. b4 {[%clk 0:01:21]}  Nc7 {[%clk 0:02:44]} 16. c5 {[%clk 0:01:16]}  d5 {[%clk 0:02:38]} 17. e5 {[%clk 0:01:12]}  Be7 {[%clk 0:02:38]} 18. b5 {[%clk 0:01:02]}  f6 {[%clk 0:02:38]} 19. bxc6 {[%clk 0:00:57]}  bxc6 {[%clk 0:02:39]} 20. Qa4 {[%clk 0:00:57]}  Qe8 {[%clk 0:02:36]} 21. Rae1 {[%clk 0:00:55]}  Ne6 {[%clk 0:02:31]} 22. Ba6 {[%clk 0:00:49]}  f5 {[%clk 0:02:29]} 23. Rb1 {[%clk 0:00:40]}  g5 {[%clk 0:02:26]} 24. Bb7 {[%clk 0:00:34]}  Bxb7 {[%clk 0:02:18]} 25. Rxb7 {[%clk 0:00:34]}  g4 {[%clk 0:02:18]} 26. Ng1 {[%clk 0:00:27]}  f4 {[%clk 0:02:03]} 27. Nce2 {[%clk 0:00:27]}  Rf7 {[%clk 0:01:32]} 28. Qc2 {[%clk 0:00:24]}  Rf8 {[%clk 0:01:16]} 29. h3 {[%clk 0:00:21]}  h5 {[%clk 0:01:10]} 30. Rb3 {[%clk 0:00:11]}  Qf7 {[%clk 0:01:02]} 31. Ng3 {[%clk 0:00:11]}  Nxd4 {[%clk 0:00:57]} 32. Qd3 {[%clk 0:00:07]}  Nxb3 {[%clk 0:00:58]} 33. Qxb3 {[%clk 0:00:07]}  Bxc5 {[%clk 0:00:56]} 34. N3e2 {[%clk 0:00:07]}  Bxg1 {[%clk 0:00:56]} 35. Nxg1 {[%clk 0:00:07]}  Rae8 {[%clk 0:00:55]} 36. Ne2 {[%clk 0:00:06]}  f3 {[%clk 0:00:53]} 37. gxf3 {[%clk 0:00:06]}  gxf3 {[%clk 0:00:54]} 38. Ng1 {[%clk 0:00:06]}  f2 {[%clk 0:00:54]} 39. Qg3+ {[%clk 0:00:06]}  Qg7 {[%clk 0:00:52]} 0-1


[Site "https://www.chess.com"]

[Event "Titled Tuesday Blitz March 14 Early 2023"]
[White "Yuan, Qingyu"]
[Black "Safin, Robert"]
[WhiteFideId "8609772"]
[BlackFideId "34189120"]
[WhiteElo "2359"]
[BlackElo "2245"]
[Result "1-0"]
[Round "03"]
[TimeControl "180+2"]
[Date "2023.03.14"]
[WhiteClock "0:00:03"]
[BlackClock "0:00:02"]

1. e4 {[%clk 0:03:00]}  c6 {[%clk 0:02:47]} 2. d4 {[%clk 0:03:00]}  d5 {[%clk 0:02:47]} 3. exd5 {[%clk 0:03:01]}  cxd5 {[%clk 0:02:47]} 4. Bd3 {[%clk 0:03:02]}  Nc6 {[%clk 0:02:46]} 5. c3 {[%clk 0:03:03]}  Nf6 {[%clk 0:02:45]} 6. h3 {[%clk 0:03:03]}  g6 {[%clk 0:02:45]} 7. Nf3 {[%clk 0:03:04]}  Bf5 {[%clk 0:02:45]} 8. O-O {[%clk 0:03:03]}  Bxd3 {[%clk 0:02:42]} 9. Qxd3 {[%clk 0:03:04]}  e6 {[%clk 0:02:43]} 10. Bf4 {[%clk 0:03:03]}  Bd6 {[%clk 0:02:42]} 11. Bh6 {[%clk 0:02:55]}  Bf8 {[%clk 0:02:42]} 12. Bg5 {[%clk 0:02:36]}  Be7 {[%clk 0:02:29]} 13. Bh6 {[%clk 0:02:28]}  Bf8 {[%clk 0:02:29]} 14. Bxf8 {[%clk 0:02:28]}  Kxf8 {[%clk 0:02:27]} 15. Nbd2 {[%clk 0:02:26]}  Qc7 {[%clk 0:02:20]} 16. Rfe1 {[%clk 0:02:26]}  Kg7 {[%clk 0:02:18]} 17. Re2 {[%clk 0:02:22]}  Rab8 {[%clk 0:02:14]} 18. Nb3 {[%clk 0:02:03]}  Na5 {[%clk 0:02:07]} 19. Nc5 {[%clk 0:02:02]}  Rhe8 {[%clk 0:01:48]} 20. Rae1 {[%clk 0:02:01]}  Nd7 {[%clk 0:01:40]} 21. Ne5 {[%clk 0:01:27]}  Nxe5 {[%clk 0:01:20]} 22. Rxe5 {[%clk 0:01:27]}  b6 {[%clk 0:01:10]} 23. Nb3 {[%clk 0:00:48]}  Nc4 {[%clk 0:01:05]} 24. R5e2 {[%clk 0:00:48]}  a5 {[%clk 0:01:05]} 25. Qf3 {[%clk 0:00:43]}  Rbc8 {[%clk 0:00:52]} 26. Nc1 {[%clk 0:00:43]}  Nd6 {[%clk 0:00:37]} 27. Nd3 {[%clk 0:00:42]}  Nc4 {[%clk 0:00:32]} 28. h4 {[%clk 0:00:41]}  h5 {[%clk 0:00:30]} 29. g3 {[%clk 0:00:41]}  Rcd8 {[%clk 0:00:28]} 30. Kg2 {[%clk 0:00:39]}  Rc8 {[%clk 0:00:27]} 31. Nf4 {[%clk 0:00:39]}  Nd6 {[%clk 0:00:21]} 32. Qd3 {[%clk 0:00:27]}  Qd7 {[%clk 0:00:13]} 33. Nh3 {[%clk 0:00:20]}  Qc7 {[%clk 0:00:10]} 34. Ng5 {[%clk 0:00:20]}  Nf5 {[%clk 0:00:09]} 35. Qf3 {[%clk 0:00:19]}  Qd7 {[%clk 0:00:07]} 36. Qf4 {[%clk 0:00:17]}  Rcd8 {[%clk 0:00:07]} 37. Nf3 {[%clk 0:00:13]}  Qd6 {[%clk 0:00:06]} 38. Ne5 {[%clk 0:00:12]}  Qb8 {[%clk 0:00:04]} 39. Qf3 {[%clk 0:00:12]}  Qd6 {[%clk 0:00:04]} 40. Rd1 {[%clk 0:00:11]}  Qc7 {[%clk 0:00:04]} 41. Rde1 {[%clk 0:00:11]}  Rc8 {[%clk 0:00:04]} 42. Nd3 {[%clk 0:00:11]}  Qd6 {[%clk 0:00:04]} 43. Nf4 {[%clk 0:00:11]}  Qc7 {[%clk 0:00:04]} 44. Nxd5 {[%clk 0:00:11]}  Qb7 {[%clk 0:00:02]} 45. Nf4 {[%clk 0:00:10]}  Qxf3+ {[%clk 0:00:03]} 46. Kxf3 {[%clk 0:00:11]}  b5 {[%clk 0:00:02]} 47. d5 {[%clk 0:00:11]}  e5 {[%clk 0:00:01]} 48. Rxe5 {[%clk 0:00:10]}  Red8 {[%clk 0:00:02]} 49. Kg2 {[%clk 0:00:08]}  b4 {[%clk 0:00:02]} 50. Rc1 {[%clk 0:00:08]}  bxc3 {[%clk 0:00:01]} 51. bxc3 {[%clk 0:00:08]}  Rc4 {[%clk 0:00:01]} 52. Re2 {[%clk 0:00:06]}  Nxh4+ {[%clk 0:00:01]} 53. Kf1 {[%clk 0:00:04]}  Nf5 {[%clk 0:00:02]} 54. Rb2 {[%clk 0:00:04]}  Rc5 {[%clk 0:00:02]} 55. c4 {[%clk 0:00:04]}  h4 {[%clk 0:00:02]} 56. Rb5 {[%clk 0:00:04]}  Rxb5 {[%clk 0:00:02]} 57. cxb5 {[%clk 0:00:05]}  hxg3 {[%clk 0:00:02]} 58. b6 {[%clk 0:00:04]}  g5 {[%clk 0:00:03]} 59. b7 {[%clk 0:00:03]}  gxf2 {[%clk 0:00:02]} 60. Rc8 {[%clk 0:00:03]} 1-0


[Site "https://www.chess.com"]